[Event "Late-Titled-Tuesday-Blitz-March-12-2024"]
[Site "Chess.com"]
[Date "2024.03.12"]
[Round "10"]
[White "BogdanDeac"]
[Black "mishanick"]
[Result "1-0"]
[WhiteElo "3106"]
[BlackElo "3112"]
[TimeControl "180+1"]
[EndTime "15:54:00 PDT"]
[Termination "BogdanDeac won by resignation"]

1. d4 {[%clk 0:03:00.9]} 1... Nf6 {[%clk 0:02:58.6]} 2. c4 {[%clk 0:03:01.6]}
2... e6 {[%clk 0:02:58.6]} 3. Nf3 {[%clk 0:03:02.3]} 3... d5 {[%clk 0:02:59.1]}
4. Nc3 {[%clk 0:03:02.6]} 4... c5 {[%clk 0:02:56.8]} 5. cxd5 {[%clk 0:03:02.2]}
5... cxd4 {[%clk 0:02:56.7]} 6. Qxd4 {[%clk 0:03:02.2]} 6... exd5 {[%clk
0:02:57.4]} 7. e4 {[%clk 0:02:40.1]} 7... dxe4 {[%clk 0:02:57]} 8. Qxd8+ {[%clk
0:02:40.7]} 8... Kxd8 {[%clk 0:02:57.9]} 9. Ng5 {[%clk 0:02:39.8]} 9... Be6
{[%clk 0:02:58.5]} 10. Bd2 {[%clk 0:02:09.6]} 10... Nbd7 {[%clk 0:02:56.5]} 11.
Ncxe4 {[%clk 0:02:01.6]} 11... Nxe4 {[%clk 0:02:56]} 12. Nxe4 {[%clk 0:02:01.7]}
12... h6 {[%clk 0:02:56.4]} 13. Bc3 {[%clk 0:01:27.8]} 13... f5 {[%clk
0:02:18.1]} 14. Ng3 {[%clk 0:01:23.9]} 14... Nc5 {[%clk 0:02:06.4]} 15. Be2
{[%clk 0:01:01.2]} 15... Ke7 {[%clk 0:02:06.2]} 16. Nh5 {[%clk 0:00:55.9]} 16...
Kf7 {[%clk 0:02:05]} 17. Nf4 {[%clk 0:00:56]} 17... Rg8 {[%clk 0:01:50.1]} 18.
Nxe6 {[%clk 0:00:48.1]} 18... Nxe6 {[%clk 0:01:49.9]} 19. O-O-O {[%clk 0:00:46]}
19... Rc8 {[%clk 0:01:40.6]} 20. Rd7+ {[%clk 0:00:27.6]} 20... Kg6 {[%clk
0:01:40.5]} 21. Rxb7 {[%clk 0:00:27.3]} 21... Bc5 {[%clk 0:01:39.7]} 22. g4
{[%clk 0:00:16.4]} 22... fxg4 {[%clk 0:00:35.1]} 23. Bxg4 {[%clk 0:00:15.7]}
23... Rce8 {[%clk 0:00:35.8]} 24. Bxe6 {[%clk 0:00:09.4]} 24... Rxe6 {[%clk
0:00:35.2]} 25. Rg1+ {[%clk 0:00:10]} 25... Kh5 {[%clk 0:00:25.9]} 26. Rb5
{[%clk 0:00:08.3]} 26... Rc8 {[%clk 0:00:20.5]} 27. b4 {[%clk 0:00:07.7]} 27...
Re5 {[%clk 0:00:17.9]} 28. Rxc5 {[%clk 0:00:05.8]} 28... Rcxc5 {[%clk
0:00:17.8]} 29. bxc5 {[%clk 0:00:06.7]} 29... Rxc5 {[%clk 0:00:18.5]} 30. Kc2
{[%clk 0:00:07.1]} 30... g5 {[%clk 0:00:19.4]} 31. Rg3 {[%clk 0:00:07.2]} 31...
Rf5 {[%clk 0:00:19.7]} 32. f3 {[%clk 0:00:07.4]} 32... Rf4 {[%clk 0:00:19.7]}
33. Rh3+ {[%clk 0:00:07]} 33... Kg6 {[%clk 0:00:20]} 34. Rg3 {[%clk 0:00:07.7]}
34... Rh4 {[%clk 0:00:20.2]} 35. h3 {[%clk 0:00:07.4]} 35... Ra4 {[%clk
0:00:20.9]} 36. Kb3 {[%clk 0:00:07.1]} 36... Rf4 {[%clk 0:00:21.6]} 37. Bd2
{[%clk 0:00:07.3]} 37... Rd4 {[%clk 0:00:21.6]} 38. Kc2 {[%clk 0:00:07.7]} 38...
Kf5 {[%clk 0:00:21.4]} 39. Rg4 {[%clk 0:00:07.4]} 39... Rd6 {[%clk 0:00:20.5]}
40. h4 {[%clk 0:00:07.6]} 40... Rc6+ {[%clk 0:00:18.6]} 41. Kd1 {[%clk
0:00:07.2]} 41... Kg6 {[%clk 0:00:05.8]} 42. hxg5 {[%clk 0:00:07]} 42... h5
{[%clk 0:00:06.2]} 43. Rh4 {[%clk 0:00:07.2]} 43... a6 {[%clk 0:00:06.4]} 44. a4
{[%clk 0:00:07.5]} 44... Rb6 {[%clk 0:00:05.6]} 45. Ke2 {[%clk 0:00:07.7]} 45...
Re6+ {[%clk 0:00:05.7]} 46. Re4 {[%clk 0:00:07.6]} 46... Rd6 {[%clk 0:00:06.6]}
47. Be3 {[%clk 0:00:07.6]} 47... Kf5 {[%clk 0:00:06]} 48. Rf4+ {[%clk
0:00:07.3]} 48... Ke5 {[%clk 0:00:06.2]} 49. Rf6 {[%clk 0:00:07]} 49... Rxf6
{[%clk 0:00:06.4]} 50. Bd4+ {[%clk 0:00:06.4]} 50... Kxd4 {[%clk 0:00:06.6]} 51.
gxf6 {[%clk 0:00:06.8]} 1-0

[Event "Late-Titled-Tuesday-Blitz-March-12-2024"]
[Site "Chess.com"]
[Date "2024.03.12"]
[Round "10"]
[White "Mikhail_Bryakin"]
[Black "WilsonPalencia21"]
[Result "0-1"]
[WhiteElo "2728"]
[BlackElo "2580"]
[TimeControl "180+1"]
[EndTime "15:54:02 PDT"]
[Termination "WilsonPalencia21 won on time"]

1. e4 {[%clk 0:03:00.9]} 1... c5 {[%clk 0:02:59.7]} 2. d4 {[%clk 0:03:01.5]}
2... cxd4 {[%clk 0:02:59.8]} 3. Qxd4 {[%clk 0:03:02.4]} 3... Nc6 {[%clk
0:02:59.8]} 4. Qd3 {[%clk 0:03:03.1]} 4... g6 {[%clk 0:03:00.1]} 5. Nc3 {[%clk
0:03:03.5]} 5... Bg7 {[%clk 0:03:00.5]} 6. Nf3 {[%clk 0:03:04.2]} 6... d6 {[%clk
0:03:01]} 7. Be2 {[%clk 0:03:04.8]} 7... Nf6 {[%clk 0:03:01.5]} 8. O-O {[%clk
0:03:05.5]} 8... O-O {[%clk 0:03:02]} 9. Nd5 {[%clk 0:03:06.2]} 9... Bg4 {[%clk
0:02:54]} 10. c3 {[%clk 0:03:05.8]} 10... Bxf3 {[%clk 0:02:53.2]} 11. Qxf3
{[%clk 0:03:02.1]} 11... Ne5 {[%clk 0:02:51.3]} 12. Qe3 {[%clk 0:03:02.1]} 12...
Ned7 {[%clk 0:02:45.5]} 13. Nf4 {[%clk 0:02:46.4]} 13... Qb6 {[%clk 0:02:42.6]}
14. Qxb6 {[%clk 0:02:43.5]} 14... Nxb6 {[%clk 0:02:42.4]} 15. f3 {[%clk
0:02:44.2]} 15... Nfd7 {[%clk 0:02:35]} 16. Rd1 {[%clk 0:02:41.9]} 16... Rfc8
{[%clk 0:02:33.6]} 17. Nd5 {[%clk 0:02:40.8]} 17... Nxd5 {[%clk 0:02:32]} 18.
Rxd5 {[%clk 0:02:41.7]} 18... Nb6 {[%clk 0:02:26.9]} 19. Rd1 {[%clk 0:02:42]}
19... a5 {[%clk 0:02:24.1]} 20. a4 {[%clk 0:02:40]} 20... Nc4 {[%clk 0:02:21.1]}
21. Rb1 {[%clk 0:02:39.7]} 21... Ne5 {[%clk 0:02:18.5]} 22. Be3 {[%clk
0:02:38.8]} 22... Nc4 {[%clk 0:02:17.5]} 23. Bd4 {[%clk 0:02:34.9]} 23... Bxd4+
{[%clk 0:02:10.6]} 24. cxd4 {[%clk 0:02:35.8]} 24... Nb6 {[%clk 0:02:08.5]} 25.
b3 {[%clk 0:02:29.8]} 25... Rc3 {[%clk 0:02:06.7]} 26. Rdc1 {[%clk 0:02:22.6]}
26... Rac8 {[%clk 0:02:05.9]} 27. Rxc3 {[%clk 0:02:23.3]} 27... Rxc3 {[%clk
0:02:05.4]} 28. Kf2 {[%clk 0:02:24.2]} 28... e5 {[%clk 0:01:54.8]} 29. dxe5
{[%clk 0:02:18.9]} 29... dxe5 {[%clk 0:01:55]} 30. Ke1 {[%clk 0:02:19.5]} 30...
Kf8 {[%clk 0:01:46.4]} 31. Kd2 {[%clk 0:02:17.8]} 31... Rc7 {[%clk 0:01:46.3]}
32. Bb5 {[%clk 0:02:17.9]} 32... Ke7 {[%clk 0:01:42.7]} 33. h4 {[%clk
0:02:10.6]} 33... h5 {[%clk 0:01:42]} 34. b4 {[%clk 0:02:10.7]} 34... axb4
{[%clk 0:01:24.1]} 35. Rxb4 {[%clk 0:02:11.6]} 35... Nc8 {[%clk 0:01:23.6]} 36.
Bd3 {[%clk 0:01:57.7]} 36... Nd6 {[%clk 0:01:23.2]} 37. Rb3 {[%clk 0:01:53.8]}
37... f5 {[%clk 0:01:16.6]} 38. exf5 {[%clk 0:01:27.4]} 38... gxf5 {[%clk
0:01:16.6]} 39. Rc3 {[%clk 0:01:25.8]} 39... Rxc3 {[%clk 0:01:07.4]} 40. Kxc3
{[%clk 0:01:26.7]} 40... b6 {[%clk 0:01:01.3]} 41. Be2 {[%clk 0:01:18.7]} 41...
Ke6 {[%clk 0:00:45.8]} 42. Bc4+ {[%clk 0:01:18.6]} 42... Kf6 {[%clk 0:00:45.5]}
43. Bd5 {[%clk 0:01:17.2]} 43... f4 {[%clk 0:00:35.2]} 44. Kb4 {[%clk
0:00:46.3]} 44... Kf5 {[%clk 0:00:28.7]} 45. Bc6 {[%clk 0:00:44.7]} 45... Kf6
{[%clk 0:00:24]} 46. Be4 {[%clk 0:00:41.2]} 46... Kf7 {[%clk 0:00:20.6]} 47. Bd3
{[%clk 0:00:38.6]} 47... Kf6 {[%clk 0:00:20.6]} 48. Kc3 {[%clk 0:00:34.7]} 48...
Ke6 {[%clk 0:00:20.4]} 49. Bg6 {[%clk 0:00:32]} 49... Nf5 {[%clk 0:00:14]} 50.
Kb4 {[%clk 0:00:06.7]} 50... Nxh4 {[%clk 0:00:11.8]} 51. Bxh5 {[%clk 0:00:02.7]}
51... Kd6 {[%clk 0:00:12.1]} 0-1

[Event "Late-Titled-Tuesday-Blitz-March-12-2024"]
[Site "Chess.com"]
[Date "2024.03.12"]
[Round "10"]
[White "lluiss"]
[Black "mortngabriel"]
[Result "0-1"]
[WhiteElo "2228"]
[BlackElo "2493"]
[TimeControl "180+1"]
[EndTime "15:54:02 PDT"]
[Termination "mortngabriel won by resignation"]

1. Nf3 {[%clk 0:03:00.9]} 1... d5 {[%clk 0:02:59.9]} 2. d4 {[%clk 0:03:00.6]}
2... Nf6 {[%clk 0:03:00]} 3. c4 {[%clk 0:03:01.1]} 3... e6 {[%clk 0:03:00.3]} 4.
cxd5 {[%clk 0:03:02]} 4... exd5 {[%clk 0:03:00.5]} 5. Nc3 {[%clk 0:03:02.4]}
5... Bb4 {[%clk 0:02:52.4]} 6. Bg5 {[%clk 0:03:00.4]} 6... h6 {[%clk 0:02:51.3]}
7. Bxf6 {[%clk 0:03:00.4]} 7... Qxf6 {[%clk 0:02:50.8]} 8. e3 {[%clk 0:03:01.3]}
8... O-O {[%clk 0:02:50.6]} 9. Be2 {[%clk 0:02:56.1]} 9... c6 {[%clk 0:02:50.1]}
10. O-O {[%clk 0:02:55.8]} 10... Re8 {[%clk 0:02:47.9]} 11. Rc1 {[%clk
0:02:55.3]} 11... Bd6 {[%clk 0:02:46.4]} 12. a3 {[%clk 0:02:41.3]} 12... a5
{[%clk 0:02:45.8]} 13. Na4 {[%clk 0:02:39.4]} 13... Nd7 {[%clk 0:02:41.6]} 14.
Qb3 {[%clk 0:02:14.9]} 14... b5 {[%clk 0:02:33.2]} 15. Nc3 {[%clk 0:02:13.9]}
15... a4 {[%clk 0:02:18]} 16. Qc2 {[%clk 0:02:11.6]} 16... Nb6 {[%clk
0:02:17.8]} 17. e4 {[%clk 0:01:57.3]} 17... Bf4 {[%clk 0:01:27.1]} 18. e5 {[%clk
0:01:54.1]} 18... Qf5 {[%clk 0:01:13.8]} 19. Bd3 {[%clk 0:01:52.8]} 19... Qh5
{[%clk 0:01:13.5]} 20. Ne2 {[%clk 0:01:19.8]} 20... Bxc1 {[%clk 0:01:13]} 21.
Rxc1 {[%clk 0:01:20.2]} 21... Nc4 {[%clk 0:00:59.6]} 22. Ng3 {[%clk 0:01:20]}
22... Qg4 {[%clk 0:00:57.5]} 23. Bh7+ {[%clk 0:01:16.2]} 23... Kh8 {[%clk
0:00:53.8]} 24. Bd3 {[%clk 0:01:13.7]} 24... Bd7 {[%clk 0:00:35.9]} 25. h3
{[%clk 0:01:13.3]} 25... Qe6 {[%clk 0:00:29.5]} 26. Nf5 {[%clk 0:00:59.6]} 26...
f6 {[%clk 0:00:25.3]} 27. N3h4 {[%clk 0:00:44.6]} 27... fxe5 {[%clk 0:00:23.4]}
28. dxe5 {[%clk 0:00:44]} 28... Nxe5 {[%clk 0:00:21.9]} 29. Nd4 {[%clk
0:00:38.7]} 29... Qf6 {[%clk 0:00:20.6]} 30. Ng6+ {[%clk 0:00:33.3]} 30... Nxg6
{[%clk 0:00:20.4]} 31. Bxg6 {[%clk 0:00:34.2]} 31... Qxd4 {[%clk 0:00:18.8]} 32.
Bxe8 {[%clk 0:00:32.9]} 32... Rxe8 {[%clk 0:00:19.7]} 33. Rd1 {[%clk 0:00:32.5]}
33... Qe4 {[%clk 0:00:18.7]} 34. Qd2 {[%clk 0:00:32.4]} 34... Qe2 {[%clk
0:00:17.4]} 35. Qd4 {[%clk 0:00:31.3]} 35... Re4 {[%clk 0:00:16.8]} 36. Qd2
{[%clk 0:00:27.2]} 36... Qxd2 {[%clk 0:00:16.1]} 37. Rxd2 {[%clk 0:00:28.1]}
37... g5 {[%clk 0:00:15.7]} 38. f3 {[%clk 0:00:27.6]} 38... Re3 {[%clk
0:00:14.4]} 39. Kf2 {[%clk 0:00:27.5]} 39... Rb3 {[%clk 0:00:15.3]} 40. Re2
{[%clk 0:00:27]} 40... Bf5 {[%clk 0:00:13.9]} 41. Kg3 {[%clk 0:00:26.3]} 41...
Kg7 {[%clk 0:00:13.4]} 42. h4 {[%clk 0:00:26.6]} 42... Kf6 {[%clk 0:00:12.6]}
43. hxg5+ {[%clk 0:00:27.5]} 43... hxg5 {[%clk 0:00:12.8]} 44. Kf2 {[%clk
0:00:26.3]} 44... d4 {[%clk 0:00:12.7]} 45. g4 {[%clk 0:00:26.1]} 45... d3
{[%clk 0:00:11.1]} 46. Rd2 {[%clk 0:00:26.3]} 46... Bg6 {[%clk 0:00:09.9]} 47.
Kg3 {[%clk 0:00:26.3]} 47... c5 {[%clk 0:00:10.4]} 48. f4 {[%clk 0:00:26]} 48...
gxf4+ {[%clk 0:00:11.3]} 49. Kxf4 {[%clk 0:00:26.5]} 49... c4 {[%clk 0:00:11.6]}
50. g5+ {[%clk 0:00:25.2]} 50... Ke6 {[%clk 0:00:11.7]} 51. Ke3 {[%clk
0:00:23.6]} 51... Ke5 {[%clk 0:00:11.7]} 0-1

[Event "Late-Titled-Tuesday-Blitz-March-12-2024"]
[Site "Chess.com"]
[Date "2024.03.12"]
[Round "10"]
[White "mbojan"]
[Black "chess_blitz00"]
[Result "1-0"]
[WhiteElo "2869"]
[BlackElo "2477"]
[TimeControl "180+1"]
[EndTime "15:54:03 PDT"]
[Termination "mbojan won on time"]

1. a3 {[%clk 0:03:00.9]} 1... d5 {[%clk 0:02:59.4]} 2. h3 {[%clk 0:03:01.3]}
2... e5 {[%clk 0:02:59.6]} 3. e3 {[%clk 0:03:01.7]} 3... Nf6 {[%clk 0:02:58.3]}
4. d4 {[%clk 0:03:02.3]} 4... Nc6 {[%clk 0:02:56.6]} 5. Bb5 {[%clk 0:03:00.3]}
5... e4 {[%clk 0:02:51.8]} 6. c4 {[%clk 0:02:58.7]} 6... a6 {[%clk 0:02:52.3]}
7. Bxc6+ {[%clk 0:02:58.8]} 7... bxc6 {[%clk 0:02:53.2]} 8. Ne2 {[%clk 0:02:58]}
8... a5 {[%clk 0:02:51.2]} 9. Qc2 {[%clk 0:02:44.5]} 9... Bd6 {[%clk 0:02:41]}
10. Bd2 {[%clk 0:02:42.5]} 10... O-O {[%clk 0:02:38]} 11. Bc3 {[%clk 0:02:40.3]}
11... Ba6 {[%clk 0:02:30]} 12. Nd2 {[%clk 0:02:40.9]} 12... a4 {[%clk
0:02:22.6]} 13. Bb4 {[%clk 0:02:16.9]} 13... Bxb4 {[%clk 0:01:54.9]} 14. axb4
{[%clk 0:02:17.8]} 14... Qb8 {[%clk 0:01:55.1]} 15. Qc3 {[%clk 0:02:15.2]} 15...
dxc4 {[%clk 0:01:54.5]} 16. Nf4 {[%clk 0:02:12.5]} 16... Nd5 {[%clk 0:01:52.8]}
17. Nxd5 {[%clk 0:02:12.7]} 17... cxd5 {[%clk 0:01:53.7]} 18. Rxa4 {[%clk
0:02:13.3]} 18... Bb5 {[%clk 0:01:39.9]} 19. Ra5 {[%clk 0:02:11.6]} 19... Qb7
{[%clk 0:01:00]} 20. O-O {[%clk 0:02:11.3]} 20... Ra6 {[%clk 0:00:56.7]} 21.
Rfa1 {[%clk 0:02:10.8]} 21... Rfa8 {[%clk 0:00:56.4]} 22. R1a3 {[%clk
0:02:11.6]} 22... Qb6 {[%clk 0:00:45.7]} 23. Nb1 {[%clk 0:02:11.7]} 23... f5
{[%clk 0:00:38.1]} 24. Rxa6 {[%clk 0:02:07.2]} 24... Rxa6 {[%clk 0:00:37.9]} 25.
Ra5 {[%clk 0:02:08]} 25... c6 {[%clk 0:00:24]} 26. Qa3 {[%clk 0:02:08]} 26...
Kf7 {[%clk 0:00:18.6]} 27. Nc3 {[%clk 0:02:08.2]} 27... Rxa5 {[%clk 0:00:19.1]}
28. bxa5 {[%clk 0:02:08.2]} 28... Qa6 {[%clk 0:00:18.8]} 29. f4 {[%clk
0:02:01.1]} 29... h5 {[%clk 0:00:17.2]} 30. Kf2 {[%clk 0:02:01.3]} 30... h4
{[%clk 0:00:16.6]} 31. Qb4 {[%clk 0:01:58.9]} 31... g6 {[%clk 0:00:13.9]} 32.
Ke1 {[%clk 0:01:59.4]} 32... Ke6 {[%clk 0:00:13.8]} 33. Kd2 {[%clk 0:01:57.9]}
33... Kf7 {[%clk 0:00:13.5]} 34. Kc2 {[%clk 0:01:46.4]} 34... Ke6 {[%clk
0:00:13.7]} 35. Qa3 {[%clk 0:01:45.6]} 35... Kf7 {[%clk 0:00:13.7]} 36. Kc1
{[%clk 0:01:45.6]} 36... Ke6 {[%clk 0:00:14]} 37. Kd1 {[%clk 0:01:46.1]} 37...
Kf7 {[%clk 0:00:14.5]} 38. Qb4 {[%clk 0:01:45.2]} 38... Ke6 {[%clk 0:00:14.9]}
39. Kd2 {[%clk 0:01:45.8]} 39... Kf7 {[%clk 0:00:15.3]} 40. Nxb5 {[%clk
0:01:46.4]} 40... cxb5 {[%clk 0:00:14.2]} 41. Qa3 {[%clk 0:01:46.6]} 41... Ke6
{[%clk 0:00:13.3]} 42. Kc3 {[%clk 0:01:47.2]} 42... Kd7 {[%clk 0:00:13.1]} 43.
Kc2 {[%clk 0:01:45.5]} 43... Ke8 {[%clk 0:00:11.6]} 44. Qb4 {[%clk 0:01:37.3]}
44... Kf7 {[%clk 0:00:10.9]} 45. Kb1 {[%clk 0:01:37.9]} 45... Ke8 {[%clk
0:00:11]} 46. Ka2 {[%clk 0:01:38.5]} 46... Kf7 {[%clk 0:00:10.9]} 47. Ka3 {[%clk
0:01:39]} 47... Ke8 {[%clk 0:00:10.5]} 48. b3 {[%clk 0:01:31.9]} 48... Kf7
{[%clk 0:00:05.9]} 49. Kb2 {[%clk 0:01:32.4]} 49... Ke8 {[%clk 0:00:05.6]} 50.
Qe1 {[%clk 0:01:33.1]} 50... Kd7 {[%clk 0:00:05.6]} 51. Qb4 {[%clk 0:01:15]}
51... Kc7 {[%clk 0:00:04.5]} 52. Qc5+ {[%clk 0:01:14.3]} 52... Kb8 {[%clk
0:00:02.8]} 53. b4 {[%clk 0:01:12.5]} 53... Qb7 {[%clk 0:00:01.9]} 54. Kc3
{[%clk 0:01:11.3]} 54... Qd7 {[%clk 0:00:01.9]} 55. Qb6+ {[%clk 0:01:11.1]}
55... Kc8 {[%clk 0:00:02.1]} 56. Qxg6 {[%clk 0:01:09.3]} 56... Kb7 {[%clk
0:00:02.3]} 57. Qb6+ {[%clk 0:01:07.2]} 57... Kc8 {[%clk 0:00:02.8]} 58. Qf6
{[%clk 0:01:07.8]} 58... Kb8 {[%clk 0:00:01.8]} 59. Qh8+ {[%clk 0:01:06.3]}
59... Ka7 {[%clk 0:00:02]} 60. Qxh4 {[%clk 0:01:06.4]} 60... Qg7 {[%clk
0:00:01.5]} 61. Qg5 {[%clk 0:01:06.5]} 61... Qh7 {[%clk 0:00:01.7]} 62. h4
{[%clk 0:01:06.5]} 62... Ka6 {[%clk 0:00:01.4]} 63. h5 {[%clk 0:01:06.2]} 63...
Ka7 {[%clk 0:00:02]} 64. g3 {[%clk 0:01:04.9]} 64... Qh8 {[%clk 0:00:02.2]} 65.
h6 {[%clk 0:01:02.4]} 65... Qh7 {[%clk 0:00:02.5]} 66. Qg7+ {[%clk 0:00:54.8]}
66... Ka6 {[%clk 0:00:03]} 67. Kc2 {[%clk 0:00:44.6]} 1-0

[Event "Late-Titled-Tuesday-Blitz-March-12-2024"]
[Site "Chess.com"]
[Date "2024.03.12"]
[Round "10"]
[White "trriinu"]
[Black "Koalaskakistis"]
[Result "0-1"]
[WhiteElo "2295"]
[BlackElo "2525"]
[TimeControl "180+1"]
[EndTime "15:54:05 PDT"]
[Termination "Koalaskakistis won by checkmate"]

1. e4 {[%clk 0:03:00.2]} 1... c5 {[%clk 0:02:55.8]} 2. Nf3 {[%clk 0:02:59.8]}
2... d6 {[%clk 0:02:56.2]} 3. Bb5+ {[%clk 0:02:59.7]} 3... Nc6 {[%clk
0:02:53.9]} 4. O-O {[%clk 0:02:59.2]} 4... Bd7 {[%clk 0:02:50.4]} 5. Re1 {[%clk
0:02:59.1]} 5... Nf6 {[%clk 0:02:48.7]} 6. c3 {[%clk 0:02:59.4]} 6... a6 {[%clk
0:02:48.4]} 7. Bf1 {[%clk 0:02:58.6]} 7... Bg4 {[%clk 0:02:33]} 8. h3 {[%clk
0:02:57.3]} 8... Bxf3 {[%clk 0:02:32.2]} 9. Qxf3 {[%clk 0:02:58.2]} 9... e6
{[%clk 0:02:31]} 10. d3 {[%clk 0:02:45.2]} 10... Be7 {[%clk 0:02:30.5]} 11. g4
{[%clk 0:02:39.4]} 11... O-O {[%clk 0:02:30]} 12. Bg2 {[%clk 0:02:39.6]} 12...
Nd7 {[%clk 0:02:19.3]} 13. Nd2 {[%clk 0:02:32.6]} 13... Bg5 {[%clk 0:02:15.9]}
14. Nf1 {[%clk 0:02:28.6]} 14... Nde5 {[%clk 0:02:04.4]} 15. Qe2 {[%clk
0:02:25.8]} 15... Qf6 {[%clk 0:01:58.4]} 16. Ng3 {[%clk 0:02:13.8]} 16... g6
{[%clk 0:01:27.9]} 17. Rf1 {[%clk 0:01:18.1]} 17... Bf4 {[%clk 0:01:26]} 18.
Bxf4 {[%clk 0:01:15.3]} 18... Qxf4 {[%clk 0:01:26.9]} 19. Rad1 {[%clk
0:01:01.3]} 19... b5 {[%clk 0:01:22.1]} 20. d4 {[%clk 0:00:55.1]} 20... cxd4
{[%clk 0:01:19.3]} 21. cxd4 {[%clk 0:00:55.1]} 21... Nc4 {[%clk 0:01:19]} 22. b3
{[%clk 0:00:40.6]} 22... Nb6 {[%clk 0:01:06.5]} 23. Rfe1 {[%clk 0:00:16.4]}
23... e5 {[%clk 0:01:06]} 24. dxe5 {[%clk 0:00:12]} 24... dxe5 {[%clk
0:01:06.4]} 25. Rd6 {[%clk 0:00:11.1]} 25... Rac8 {[%clk 0:01:05]} 26. Qd1
{[%clk 0:00:07.5]} 26... Na8 {[%clk 0:00:48.3]} 27. Ne2 {[%clk 0:00:07.4]} 27...
Qg5 {[%clk 0:00:47]} 28. Qd5 {[%clk 0:00:05.4]} 28... Nb4 {[%clk 0:00:24.4]} 29.
Qd1 {[%clk 0:00:02.5]} 29... Nc7 {[%clk 0:00:22]} 30. a3 {[%clk 0:00:02.2]}
30... Na2 {[%clk 0:00:14.7]} 31. Rd2 {[%clk 0:00:02.3]} 31... Ne6 {[%clk
0:00:11.9]} 32. Rxa2 {[%clk 0:00:02.4]} 32... Rfd8 {[%clk 0:00:11.5]} 33. Qa1
{[%clk 0:00:02.2]} 33... h5 {[%clk 0:00:10.4]} 34. f3 {[%clk 0:00:01.9]} 34...
Qe3+ {[%clk 0:00:09.5]} 35. Kh2 {[%clk 0:00:01.8]} 35... h4 {[%clk 0:00:08.1]}
36. Ng1 {[%clk 0:00:01.8]} 36... Qf4+ {[%clk 0:00:07.7]} 37. Kh1 {[%clk
0:00:02.4]} 37... Ng5 {[%clk 0:00:08.6]} 38. Rf1 {[%clk 0:00:02]} 38... Rd3
{[%clk 0:00:06.6]} 39. Raf2 {[%clk 0:00:01.9]} 39... Rcc3 {[%clk 0:00:06.1]} 40.
Ne2 {[%clk 0:00:02.4]} 40... Qe3 {[%clk 0:00:06.3]} 41. Nxc3 {[%clk 0:00:02.7]}
41... Rxc3 {[%clk 0:00:07.2]} 42. Qe1 {[%clk 0:00:02.7]} 42... Qc5 {[%clk
0:00:07.1]} 43. Qd2 {[%clk 0:00:02.7]} 43... Ne6 {[%clk 0:00:07.4]} 44. Qd7
{[%clk 0:00:02.6]} 44... Nf4 {[%clk 0:00:07.6]} 45. Qe8+ {[%clk 0:00:02.7]}
45... Kg7 {[%clk 0:00:07.6]} 46. Qd7 {[%clk 0:00:02.8]} 46... Rd3 {[%clk
0:00:05.3]} 47. Qa7 {[%clk 0:00:02.1]} 47... Qxa7 {[%clk 0:00:03.8]} 48. Re1
{[%clk 0:00:01.9]} 48... Qxf2 {[%clk 0:00:04]} 49. Rc1 {[%clk 0:00:01.6]} 49...
Qxg2# {[%clk 0:00:04.5]} 0-1

[Event "Late-Titled-Tuesday-Blitz-March-12-2024"]
[Site "Chess.com"]
[Date "2024.03.12"]
[Round "10"]
[White "amiralfio"]
[Black "crazyluzhinTh3"]
[Result "1-0"]
[WhiteElo "2675"]
[BlackElo "2571"]
[TimeControl "180+1"]
[EndTime "15:54:09 PDT"]
[Termination "amiralfio won by resignation"]

1. e4 {[%clk 0:03:00]} 1... d6 {[%clk 0:03:00]} 2. Nf3 {[%clk 0:03:00.4]} 2...
Nf6 {[%clk 0:03:00.4]} 3. Nc3 {[%clk 0:03:00.7]} 3... Bg4 {[%clk 0:03:00.9]} 4.
h3 {[%clk 0:02:58.5]} 4... Bh5 {[%clk 0:03:00.5]} 5. Be2 {[%clk 0:02:59.3]} 5...
e6 {[%clk 0:03:00.6]} 6. d4 {[%clk 0:02:59.3]} 6... c6 {[%clk 0:03:01.1]} 7. Be3
{[%clk 0:02:59.9]} 7... d5 {[%clk 0:03:01.2]} 8. e5 {[%clk 0:02:59.8]} 8... Nfd7
{[%clk 0:03:01]} 9. Nd2 {[%clk 0:02:59.8]} 9... Bg6 {[%clk 0:03:01]} 10. h4
{[%clk 0:02:59.7]} 10... h6 {[%clk 0:03:00.4]} 11. h5 {[%clk 0:02:59.7]} 11...
Bh7 {[%clk 0:03:00.9]} 12. Nf3 {[%clk 0:02:57.9]} 12... c5 {[%clk 0:03:00.3]}
13. Bd3 {[%clk 0:02:56.2]} 13... Bxd3 {[%clk 0:02:53]} 14. Qxd3 {[%clk
0:02:57.1]} 14... Nc6 {[%clk 0:02:51.1]} 15. Ne2 {[%clk 0:02:56.2]} 15... cxd4
{[%clk 0:02:32.8]} 16. Bxd4 {[%clk 0:02:55.8]} 16... Nc5 {[%clk 0:02:23.4]} 17.
Qe3 {[%clk 0:02:52.8]} 17... Ne4 {[%clk 0:02:19.6]} 18. c3 {[%clk 0:02:45]}
18... Be7 {[%clk 0:02:10.5]} 19. O-O {[%clk 0:02:38.5]} 19... O-O {[%clk
0:02:09]} 20. Rad1 {[%clk 0:02:33.4]} 20... Qa5 {[%clk 0:02:06.1]} 21. a3 {[%clk
0:02:31]} 21... Rac8 {[%clk 0:02:03]} 22. Nd2 {[%clk 0:02:22.8]} 22... Nxd4
{[%clk 0:01:40.9]} 23. Nxd4 {[%clk 0:02:18.9]} 23... Nxd2 {[%clk 0:01:26.2]} 24.
Rxd2 {[%clk 0:02:19.8]} 24... Qb6 {[%clk 0:01:24.2]} 25. f4 {[%clk 0:02:12]}
25... Rc4 {[%clk 0:01:18.9]} 26. Kh2 {[%clk 0:01:52.4]} 26... Rfc8 {[%clk
0:01:13.2]} 27. Rf3 {[%clk 0:01:52.2]} 27... Qd8 {[%clk 0:01:01.7]} 28. Rg3
{[%clk 0:01:45]} 28... Kh8 {[%clk 0:01:02.2]} 29. Qf3 {[%clk 0:01:38.7]} 29...
Bc5 {[%clk 0:00:56.7]} 30. Qg4 {[%clk 0:01:37]} 30... Qf8 {[%clk 0:00:53.9]} 31.
f5 {[%clk 0:01:34.1]} 31... Bxd4 {[%clk 0:00:51.8]} 32. Rxd4 {[%clk 0:01:31.9]}
32... Rxd4 {[%clk 0:00:34.8]} 33. cxd4 {[%clk 0:01:32]} 33... exf5 {[%clk
0:00:31.1]} 34. Qxf5 {[%clk 0:01:31.6]} 34... Rc6 {[%clk 0:00:31.7]} 35. Rc3
{[%clk 0:01:21.6]} 35... Rxc3 {[%clk 0:00:22.7]} 36. bxc3 {[%clk 0:01:22.4]}
36... Qe7 {[%clk 0:00:23.3]} 37. Kh3 {[%clk 0:01:10.9]} 37... Qxa3 {[%clk
0:00:21.5]} 38. Qc8+ {[%clk 0:00:53.7]} 38... Kh7 {[%clk 0:00:21.7]} 39. Qf5+
{[%clk 0:00:54.4]} 39... Kg8 {[%clk 0:00:22.1]} 40. Qf3 {[%clk 0:00:52.3]} 40...
Qa5 {[%clk 0:00:17.9]} 41. Kg4 {[%clk 0:00:49.8]} 41... Qd8 {[%clk 0:00:17.7]}
42. Qf5 {[%clk 0:00:47.5]} 42... a5 {[%clk 0:00:17.5]} 43. e6 {[%clk 0:00:47.3]}
43... fxe6 {[%clk 0:00:17.7]} 44. Qxe6+ {[%clk 0:00:48.2]} 44... Kh8 {[%clk
0:00:18.2]} 45. Qf7 {[%clk 0:00:46.1]} 45... Qg5+ {[%clk 0:00:18.2]} 46. Kh3
{[%clk 0:00:42.7]} 46... Qf6 {[%clk 0:00:18.3]} 47. Qxd5 {[%clk 0:00:40.9]}
47... Qa6 {[%clk 0:00:13.6]} 48. Qf7 {[%clk 0:00:33.9]} 48... a4 {[%clk
0:00:09.4]} 49. d5 {[%clk 0:00:33.9]} 49... a3 {[%clk 0:00:09.5]} 50. Qf8+
{[%clk 0:00:33.7]} 50... Kh7 {[%clk 0:00:09.9]} 51. d6 {[%clk 0:00:31.9]} 51...
Qc6 {[%clk 0:00:08.5]} 52. Qf5+ {[%clk 0:00:30.2]} 52... Kg8 {[%clk 0:00:09]}
53. d7 {[%clk 0:00:25.4]} 53... Qc7 {[%clk 0:00:09.2]} 54. Qe6+ {[%clk
0:00:25.2]} 54... Kh7 {[%clk 0:00:09.7]} 55. Qe4+ {[%clk 0:00:25]} 55... Kg8
{[%clk 0:00:09.6]} 56. Qe8+ {[%clk 0:00:25.1]} 56... Kh7 {[%clk 0:00:10.2]} 57.
d8=Q {[%clk 0:00:25]} 57... Qxc3+ {[%clk 0:00:11.1]} 58. g3 {[%clk 0:00:25.6]}
1-0